[Event "Susha Chess Blitz Women 2022"]
[Site "Shusha"]
[Date "2022.09.24"]
[Round "3"]
[White "Zawadzka, Jolanta"]
[Black "Fataliyeva, Ulviyya"]
[Result "0-1"]
[ECO "B15"]
[WhiteElo "2401"]
[BlackElo "2408"]
[Annotator "TA"]
[PlyCount "60"]
[EventDate "2022.09.24"]
[EventType "tourn"]
[EventCountry "AZE"]
[SourceTitle "playchess.com"]
[Source "ChessBase"]
[SourceQuality "1"]
[TimeControl "180+2"]

{[%evp 12,60,30,32,27,39,40,43,39,37,33,26,66,69,40,36,122,123,118,92,143,161,158,71,91,76,56,75,49,41,159,45,125,104,122,111,193,198,677,616,606,0,0,0,0,-29996,-29997,-29997,-29998,-29998,-434]} 1. e4 {[%emt 0:00:01]} c6 {[%emt 0:00:01]} 2. d4 {[%emt 0:00:02]} d5 {[%emt 0:00:00]} 3. Nd2 {[%emt 0:00:01]} dxe4 {[%emt 0:00:01]} 4. Nxe4 {[%emt 0:00:01]} Nf6 {[%emt 0:00:01]} 5. Nxf6+ {[%emt 0:00:01]} exf6 {[%emt 0:00:00]} 6. c3 {[%emt 0:00:01]} Bd6 {[%emt 0:00:08]} 7. Bd3 {[%emt 0:00:02]} Na6 {[%emt 0:00:01][%cal Bb8a6,Ba6c7,Bc7d5,Bd5e7,Be7f5][%mdl 32] B15: Caro-Kann: 3 Nc3: 3...g6 and 3...dxe4 4 Nxe4 Nf6 5 Nxf6+ exf6.} 8. Ne2 {[%emt 0:00:02]} Nc7 {[%emt 0:00:01]} 9. Qc2 {[%emt 0:00:04]} h5 {[%emt 0:00:22] White is slightly better.} 10. O-O {[%emt 0:00:18]} Nd5 {[%emt 0:00:12]} 11. a3 {[%emt 0:00:33] [#]} Qc7 $146 {[%emt 0:00:01]} ({Predecessor:} 11... Kf8 12. c4 Ne7 13. Bd2 g6 14. Bc3 Kg7 15. Ng3 Qc7 16. f4 h4 17. Ne4 Nf5 {1-0 (62) Quparadze,G (2463)-Lortkipanidze,N (2416) Tbilisi 2021}) 12. h3 {[%emt 0:00:03]} Kf8 {[%emt 0:00:20]} 13. f4 {[%emt 0:00:14] aiming for c4.} c5 {[%emt 0:00:42]} (13... Ne7 $14) 14. c4 $16 {[%emt 0:00:10][%cal Bc3c4,Bc4c5][%mdl 32]} Ne7 {[%emt 0:00:01]} 15. Be3 {[%emt 0:00:09][%cal Ob2b4]} g6 {[%emt 0:00:07] [#]} (15... b6 $142) 16. b4 $1 {[%emt 0:00:21]} Nf5 {[%emt 0:00:08]} 17. Bf2 {[%emt 0:00:05]} (17. Bxf5 $142 Bxf5 18. Qc3) 17... cxb4 {[%emt 0:00:08]} 18. c5 {[%emt 0:00:21]} Bxf4 {[%emt 0:00:01]} 19. Nxf4 {[%emt 0:00:06]} Qxf4 {[%emt 0:00:02]} 20. axb4 {[%emt 0:00:21]} Be6 {[%emt 0:00:16]} (20... Nxd4 $14 21. Qc4 Ne6) 21. Be4 {[%emt 0:00:11]} (21. c6 $16 Kg7 22. cxb7) 21... Rd8 {[%emt 0:00:22] Inhibits d5.} ({Black should try} 21... Ne3 $1 $14 22. Bxe3 Qxe3+ 23. Kh1 Qxd4) 22. Bxb7 {[%emt 0:00:19] Hoping for d5.} Nxd4 {[%emt 0:00:01]} 23. Qb2 {[%emt 0:00:02]} Bc4 {[%emt 0:00:10]} (23... Kg7 $16 {was worth a try.}) 24. Bxd4 $18 {[%emt 0:00:09]} Bxf1 {[%emt 0:00:05]} (24... Qxd4+ 25. Rf2 (25. Qxd4 Rxd4 26. Rfb1 Kg7 $16) 25... Kg7) 25. Bxf6 {[%emt 0:00:04] A strong pair of Bishops.} Rd2 {[%emt 0:00:01]} 26. Rxa7 $2 {[%emt 0:00:09]} (26. Qe5 $18 {White threatens Qe7+ and mate.} Qxe5 27. Bxe5) 26... Qf2+ $11 {[%emt 0:00:03]} 27. Kh2 {[%emt 0:00:02] Intending Ra8+ and mate.} Qf4+ $40 {[%emt 0:00:07][%mdl 128] White needs to defend precisely.} (27... Rxb2 $2 28. Ra8#) 28. Kh1 $2 {[%emt 0:00:01][%mdl 8192] [#]} (28. Kg1 $11 Qf2+ 29. Kh2 Qf4+ 30. Kg1) 28... Bxg2+ $1 {[%emt 0:00:02] Black mates.} 29. Bxg2 {[%emt 0:00:02]} Rd1+ {[%emt 0:00:04]} 30. Bf1 Rxf1+ {Weighted Error Value: White=0.49/Black=0.50} (30... Qxf1+ $142 31. Kh2 Qg1#) 0-1

[Event "Susha Chess Blitz Women 2022"]
[Site "Shusha"]
[Date "2022.09.24"]
[Round "3"]
[White "Mammadova, Gulnar"]
[Black "Arabidze, Meri"]
[Result "1/2-1/2"]
[ECO "B47"]
[WhiteElo "2382"]
[BlackElo "2422"]
[Annotator "TA"]
[PlyCount "93"]
[EventDate "2022.09.24"]
[EventType "tourn"]
[EventCountry "AZE"]
[SourceTitle "playchess.com"]
[Source "ChessBase"]
[SourceQuality "1"]
[TimeControl "180+2"]

{[%evp 18,93,42,35,26,-104,70,61,69,84,87,85,165,51,53,31,24,23,26,0,238,237,331,329,324,146,137,137,135,140,152,158,217,211,247,258,356,215,331,354,343,327,338,345,388,363,368,368,369,351,477,409,301,0,0,0,8,8,8,0,0,0,0,0,0,0,0,0,0,0,0,-551,0,0,0,0,0,0]} 1. e4 {[%emt 0:00:02]} c5 {[%emt 0:00:00]} 2. Nf3 {[%emt 0:00:01]} e6 {[%emt 0:00:01]} 3. d4 {[%emt 0:00:01]} cxd4 {[%emt 0:00:01]} 4. Nxd4 {[%emt 0:00:01]} Nc6 {[%emt 0:00:00]} 5. Nc3 {[%emt 0:00:01]} Qc7 {[%emt 0:00:01]} 6. f4 {[%emt 0:00:02]} a6 {[%emt 0:00:04]} 7. Nxc6 {[%emt 0:00:01]} Qxc6 {[%emt 0:00:01]} 8. Bd3 {[%emt 0:00:01]} b5 {[%emt 0:00:02]} 9. Qe2 {[%emt 0:00:02]} Bb7 {[%emt 0:00:01]} 10. Bd2 {[%emt 0:00:01]} Rc8 {[%emt 0:00:01] B47: Sicilian: Taimanov: 5 Nc3 Qc7 6 f4, 6 g3 and 6 Be2.} 11. O-O-O {[%emt 0:00:08]} (11. a3 $11 {keeps the balance.}) 11... Nf6 $2 {[%emt 0:00:22]} (11... b4 $1 $17 {[%cal Rb4c3]} 12. Nb1 Qa4) 12. e5 $14 {[%emt 0:00:05]} Nd5 {[%emt 0:00:01][%cal Rd5c3] White is slightly better.} 13. Ne4 {[%emt 0:00:05]} Be7 {[%emt 0:00:10] [#]} 14. Kb1 $146 {[%emt 0:00:02][%cal Of4f5]} ({Predecessor:} 14. g4 O-O 15. g5 Rfd8 16. Rhg1 d6 17. Nf6+ Bxf6 18. gxf6 g6 19. Qh5 Qe8 20. Rg3 {1-0 (35) Kodentsov,G (2276)-Coene,I (2193) Ohrid 2009}) 14... O-O {[%emt 0:00:41] [#]} (14... Qc7 $16) 15. h4 {[%emt 0:00:11]} ({White should play} 15. Qh5 $1 $18) 15... f5 $1 {[%emt 0:00:16]} 16. exf6 {[%emt 0:00:23]} Nxf6 {[%emt 0:00:01]} 17. Nxf6+ {[%emt 0:00:57]} Bxf6 {[%emt 0:00:01]} 18. Rhg1 {[%emt 0:00:03]} Qd5 $2 {[%emt 0:00:21]} (18... Bd4 $1 $11) 19. Bb4 $18 {[%emt 0:00:08][%cal Od3h7] Hoping for Bxh7+!} Bd4 {[%emt 0:01:00]} 20. Bxf8 {[%emt 0:00:12] Really sharp!} Rxf8 {[%emt 0:00:00] [#]} 21. Be4 {[%emt 0:00:20]} Qxe4 $16 {[%emt 0:00:07]} 22. Qxe4 {[%emt 0:00:01][%mdl 64] Remove Defender} Bxe4 {[%emt 0:00:01]} 23. Rxd4 {[%emt 0:00:01][%mdl 4096] Endgame KRR-KRB} d5 {[%emt 0:00:05]} 24. g3 {[%emt 0:00:01]} h5 {[%emt 0:00:05]} (24... Rc8 $16 {keeps fighting.} 25. Rd2 h5) 25. Re1 $18 {[%emt 0:00:06]} Kf7 {[%emt 0:00:05]} 26. a4 {[%emt 0:00:05]} Rc8 {[%emt 0:00:05]} 27. Re2 {[%emt 0:00:02]} Kf6 {[%emt 0:00:03]} (27... Rc5 $142 28. Kc1 Kf6 29. axb5 axb5) 28. axb5 {[%emt 0:00:09]} axb5 {[%emt 0:00:00]} 29. Rexe4 {[%emt 0:00:24]} dxe4 {[%emt 0:00:02]} 30. Rxe4 {[%emt 0:00:00] KR-KR} Rc5 {[%emt 0:00:06]} 31. c3 {[%emt 0:00:03]} Kf5 {[%emt 0:00:02]} 32. Re3 {[%emt 0:00:00]} Kg4 {[%emt 0:00:07]} (32... e5 $2 33. Rxe5+ Rxe5 34. fxe5 $18) 33. Ka2 {[%emt 0:00:06]} Rd5 {[%emt 0:00:09]} 34. Kb3 {[%emt 0:00:03]} Rd2 {[%emt 0:00:03]} 35. Rxe6 $2 {[%emt 0:00:08]} ({White has to play} 35. Ka3 $18) 35... Kxg3 $11 {[%emt 0:00:00]} 36. Rg6+ {[%emt 0:00:01]} Kxh4 {[%emt 0:00:05]} 37. Rxg7 {[%emt 0:00:01]} Rf2 {[%emt 0:00:00]} 38. Rf7 {[%emt 0:00:03]} Kg3 {[%emt 0:00:01]} 39. f5 {[%emt 0:00:07]} h4 {[%emt 0:00:01]} 40. Rg7+ {[%emt 0:00:01]} Kh2 {[%emt 0:00:05]} 41. Rh7 {[%emt 0:00:04]} h3 {[%emt 0:00:01]} 42. Ka3 {[%emt 0:00:08]} Rxf5 {[%emt 0:00:02] And now ...Kg3 would win.} 43. Kb4 {[%emt 0:00:01]} Kg2 {[%emt 0:00:01]} 44. Rg7+ $2 {[%emt 0:00:01][%mdl 8192]} (44. c4 $11 {and White is okay.}) 44... Kh1 $2 {[%emt 0:00:01]} (44... Kf3 $19 {Threatens to win with ...h2.} 45. c4 bxc4 46. Kxc4 Rh5) 45. b3 {[%emt 0:00:01] The position is equal.} h2 {[%emt 0:00:01]} 46. c4 {[%emt 0:00:04]} bxc4 {[%emt 0:00:01]} 47. bxc4 {[%emt 0:00:00] White used his chance.  Weighted Error Value: White=0.46/Black=0.53} 1/2-1/2

[Event "Susha Chess Blitz Women 2022"]
[Site "Shusha"]
[Date "2022.09.24"]
[Round "3"]
[White "Balajayeva, Khanim"]
[Black "Mammadzada, Gunay"]
[Result "1/2-1/2"]
[ECO "B22"]
[WhiteElo "2379"]
[BlackElo "2473"]
[Annotator "TA"]
[PlyCount "99"]
[EventDate "2022.09.24"]
[EventType "tourn"]
[EventCountry "AZE"]
[SourceTitle "playchess.com"]
[Source "ChessBase"]
[SourceQuality "1"]
[TimeControl "180+2"]

{[%evp 22,99,0,0,0,0,2,0,0,0,0,2,7,6,21,13,16,18,29,10,8,-10,0,0,0,0,6,0,4,-27,-31,-41,-48,-40,-8,-28,0,-10,0,-62,-64,-62,-48,-73,-73,-137,-129,-136,-131,-122,-93,-136,-99,-115,0,-152,-110,-187,0,0,0,0,0,0,0,0,0,-241,0,-8,0,0,0,0,0,0,0,0,0,0]} 1. e4 {[%emt 0:00:00]} c5 {[%emt 0:00:01]} 2. c3 {[%emt 0:00:01]} Nf6 {[%emt 0:00:01]} 3. e5 {[%emt 0:00:00]} Nd5 {[%emt 0:00:01]} 4. d4 {[%emt 0:00:01]} cxd4 {[%emt 0:00:03]} 5. Nf3 {[%emt 0:00:01]} d6 {[%emt 0:00:00]} 6. cxd4 {[%emt 0:00:01]} Nc6 {[%emt 0:00:01]} 7. Bc4 {[%emt 0:00:01]} Nb6 {[%emt 0:00:02]} 8. Bb5 {[%emt 0:00:01]} dxe5 {[%emt 0:00:02]} 9. Nxe5 {[%emt 0:00:01]} Bd7 {[%emt 0:00:01]} 10. Nxd7 {[%emt 0:00:01]} Qxd7 {[%emt 0:00:00]} 11. Nc3 {[%emt 0:00:01]} e6 {[%emt 0:00:09]} 12. O-O {[%emt 0:00:01][%cal Od4d5]} Rd8 $1 {[%emt 0:00:01][%mdl 4] is more profitable than 12...Be7 at the moment. B22: Sicilian: 2 c3.} 13. Be3 {[%emt 0:00:01]} Be7 {[%emt 0:00:03]} 14. Qf3 {[%emt 0:00:01]} O-O {[%emt 0:00:11]} 15. Rfd1 {[%emt 0:00:03]} a6 {[%emt 0:00:34]} 16. Bxc6 {[%emt 0:00:02]} bxc6 {[%emt 0:00:08]} 17. Rac1 {[%emt 0:00:01]} Nd5 {[%emt 0:00:15]} 18. Na4 {[%emt 0:00:02]} Rb8 {[%emt 0:00:04]} 19. b3 {[%emt 0:00:02] [#]} Bd6 $146 {[%emt 0:00:32]} ({Predecessor:} 19... a5 20. Qg4 Rfd8 21. h3 Rb5 22. Bh6 Bf8 23. Bg5 Be7 24. Nc5 Qa7 25. Bxe7 Nxe7 26. Qe4 h6 {½-½ (26) Svilponis,T (2424)-Terekhov,A (2413) ICCF email 2014}) 20. Nc5 {[%emt 0:00:26]} Bxc5 {[%emt 0:00:10]} 21. dxc5 {[%emt 0:00:37]} Qc7 {[%emt 0:00:04]} 22. Qe4 {[%emt 0:00:13]} Rb4 {[%emt 0:00:09]} 23. Rd4 {[%emt 0:00:03]} Rfb8 {[%emt 0:00:05]} 24. g3 {[%emt 0:00:13]} Qa5 {[%emt 0:00:13]} 25. Qc2 {[%emt 0:00:20] [#] aiming for Bd2.} Nxe3 {[%emt 0:00:35]} 26. fxe3 {[%emt 0:00:01]} Rxd4 {[%emt 0:00:01]} 27. exd4 $11 {[%emt 0:00:01][%mdl 4096] Endgame KQR-KQR} Qb4 {[%emt 0:00:02]} 28. Qc3 {[%emt 0:00:27]} Qb5 {[%emt 0:00:02]} 29. Qc4 {[%emt 0:00:11]} Qa5 {[%emt 0:00:01]} (29... Rd8 $11) 30. Qc2 $15 {[%emt 0:00:16]} Rd8 {[%emt 0:00:02]} 31. Rd1 {[%emt 0:00:06]} g6 {[%emt 0:00:05][%cal Oe6e5]} 32. a4 {[%emt 0:00:05]} e5 {[%emt 0:00:07]} 33. d5 {[%emt 0:00:01]} (33. Qc4 $142) 33... cxd5 $17 {[%emt 0:00:10]} ({Don't do} 33... Rxd5 34. Rxd5 cxd5 35. c6 $16) 34. c6 {[%emt 0:00:01]} Qb6+ {[%emt 0:00:07]} 35. Kg2 Rc8 36. Rc1 {[%emt 0:00:07]} d4 {[%emt 0:00:06]} 37. c7 {[%emt 0:00:06]} Kg7 {[%emt 0:00:03]} ({Black should try} 37... a5 $17 38. Qc6 Qxc6+ 39. Rxc6 Kf8) 38. Qe4 $2 {[%emt 0:00:07] Inhibits Qb7.} (38. Qc5 $1 $11 Qb7+ 39. Kf2) 38... f6 {[%emt 0:00:03]} 39. Qc2 {[%emt 0:00:17]} (39. Qc6 $17 {was called for.} Qxc6+ 40. Rxc6) 39... d3 $2 {[%emt 0:00:01]} (39... a5 $19 {Strongly threatening ...f5.} 40. h4 (40. Qc6 Qxc6+ 41. Rxc6 Kf7 $17) 40... f5) 40. Qxd3 $11 {[%emt 0:00:02] Intending Qd7+ and mate.} Rxc7 41. Rxc7+ {[%emt 0:00:02]} Qxc7 {[%emt 0:00:01]} 42. Qxa6 {[%emt 0:00:01] KQ-KQ} Qc2+ {[%emt 0:00:01]} 43. Kh3 {[%emt 0:00:03]} Qxb3 {[%emt 0:00:01] And now ...Qf3 would win.} 44. a5 $2 {[%emt 0:00:03] [#]} (44. Qc6 $11 {and White is okay.}) 44... e4 $2 {[%emt 0:00:05]} (44... Qf3 $1 $19 {( -> ...h5)} 45. Qa7+ Kh6) 45. Qb6 {[%emt 0:00:05] The position is equal.} Qf3 {[%emt 0:00:02]} 46. Qc7+ $1 {[%emt 0:00:06]} Kg8 {[%emt 0:00:05] White must now prevent ...e3.} 47. Qd8+ {[%emt 0:00:02]} Kg7 {[%emt 0:00:01]} 48. Qc7+ $1 {[%emt 0:00:01]} Kg8 {[%emt 0:00:03] Threatens to win with ...e3.} 49. Qd8+ {[%emt 0:00:00]} Kg7 {[%emt 0:00:01]} 50. Qc7+ $1 {[%emt 0:00:02] Weighted Error Value: White=0.25 (precise) /Black=0.22 (precise)} 1/2-1/2

[Event "Susha Chess Blitz Women 2022"]
[Site "Shusha"]
[Date "2022.09.24"]
[Round "3"]
[White "Beydullayeva, Govhar"]
[Black "Efroimski, Marsel"]
[Result "1/2-1/2"]
[ECO "A40"]
[WhiteElo "2346"]
[BlackElo "2462"]
[Annotator "TA"]
[PlyCount "120"]
[EventDate "2022.09.24"]
[EventType "tourn"]
[EventCountry "AZE"]
[SourceTitle "playchess.com"]
[Source "ChessBase"]
[SourceQuality "1"]
[TimeControl "180+2"]

{[%evp 9,120,49,45,45,44,45,41,0,10,12,22,30,18,16,56,-32,-32,-52,-50,-56,0,0,18,-22,0,0,7,11,30,3,9,0,20,0,0,-21,0,0,0,0,25,1,127,132,131,119,120,81,98,29,17,29,81,0,132,131,140,121,123,79,79,79,79,79,79,79,79,79,100,100,100,100,100,100,101,60,60,48,48,48,48,48,181,175,177,44,44,0,168,44,44,44,44,0,0,0,0,0,0,0,0,0,0,0,0,0,0,0,0,0,0,0,0]} 1. d4 e6 {[%emt 0:00:02]} 2. c4 {[%emt 0:00:04]} b6 {[%emt 0:00:00]} 3. e4 {[%emt 0:00:01]} Bb7 {[%emt 0:00:01]} 4. Bd3 {[%emt 0:00:01]} Bb4+ {[%emt 0:00:01]} 5. Bd2 {[%emt 0:00:01]} Bxd2+ {[%emt 0:00:02]} 6. Qxd2 {[%emt 0:00:08] A40: Unusual replies to 1 d4.} f5 {[%emt 0:00:01]} 7. Nc3 {[%emt 0:00:14]} Nf6 {[%emt 0:00:02]} 8. Qe2 {[%emt 0:00:16] White is slightly better.} fxe4 {[%emt 0:00:10]} 9. Nxe4 {[%emt 0:00:02]} O-O {[%emt 0:00:04]} 10. Nf3 {[%emt 0:00:04]} Nc6 {[%emt 0:00:05]} 11. O-O {[%emt 0:00:16] [#]} Nb4 $146 {[%emt 0:00:01]} ({Predecessor:} 11... Qe8 12. Nxf6+ Rxf6 13. Be4 Qh5 14. d5 Ne5 15. Bxh7+ Kxh7 16. Qxe5 Qxe5 17. Nxe5 exd5 18. Nxd7 {1-0 (35) Antonsen,M (2433)-Hansen,L (2206) Allerod 2019}) 12. Nxf6+ {[%emt 0:00:09]} (12. Bb1 $1 $14) 12... Qxf6 $15 {[%emt 0:00:02]} 13. Be4 {[%emt 0:00:01]} d5 {[%emt 0:00:04]} 14. cxd5 {[%emt 0:00:09]} exd5 {[%emt 0:00:01]} (14... Ba6 $1 $15 15. Qd2 exd5 16. Bxh7+ Kxh7 17. Qxb4 Bxf1 18. Rxf1 Rae8) 15. Bd3 $11 {[%emt 0:00:17]} c5 {[%emt 0:00:13]} 16. Rfd1 {[%emt 0:00:20]} Rae8 {[%emt 0:00:03]} 17. Qd2 {[%emt 0:00:08]} Bc8 $132 {[%emt 0:00:14][%mdl 2048] Black is not holding back} 18. dxc5 {[%emt 0:00:28]} bxc5 {[%emt 0:00:22]} 19. Bb5 {[%emt 0:00:01]} Rd8 {[%emt 0:00:03]} 20. a3 {[%emt 0:00:01]} Nc6 {[%emt 0:00:05] And now ...Bg4 would win.} 21. Bxc6 {[%emt 0:00:19]} Qxc6 {[%emt 0:00:01]} 22. Ne5 {[%emt 0:00:01]} Qf6 {[%emt 0:00:07]} 23. Re1 {[%emt 0:00:02]} c4 {[%emt 0:00:12]} 24. Qd4 {[%emt 0:00:04]} Qb6 {[%emt 0:00:06]} 25. Rad1 {[%emt 0:00:05]} Bf5 {[%emt 0:00:11]} (25... Qxd4 $11 {keeps the balance.} 26. Rxd4 Bb7) 26. Qxb6 $16 {[%emt 0:00:05]} axb6 {[%emt 0:00:01]} 27. Nc6 {[%emt 0:00:01]} Bc2 {[%emt 0:00:38]} 28. Rd2 {[%emt 0:00:11]} Rde8 {[%emt 0:00:12][%cal Re8e1]} 29. Ne7+ {[%emt 0:00:10]} (29. Rde2 $16 Rxe2 30. Rxe2) 29... Kf7 $11 {[%emt 0:00:01]} 30. Rde2 $1 {[%emt 0:00:11]} Bd3 {[%emt 0:00:03]} (30... Be4 $11) 31. Re5 {[%emt 0:00:01]} (31. Re3 $1 $16 {[%cal Re3f3] Rf3+ would kill now.} Be4 32. Nc6) 31... d4 {[%emt 0:00:10] [#]} (31... Be4 $11 {remains equal.}) 32. Nc6 $1 $16 {[%emt 0:00:01]} Rxe5 {[%emt 0:00:09]} 33. Nxe5+ {[%emt 0:00:01]} Kg8 {[%emt 0:00:08]} 34. Nxd3 {[%emt 0:00:07]} cxd3 {[%emt 0:00:01][%mdl 4096] Endgame KR-KR} 35. Rd1 {[%emt 0:00:01]} Rc8 {[%emt 0:00:01][%cal Od3d2] White must now prevent ...d2!} 36. Kf1 {[%emt 0:00:03]} Rc2 {[%emt 0:00:03]} 37. Rxd3 {[%emt 0:00:00]} Rxb2 {[%emt 0:00:01]} 38. Rxd4 {[%emt 0:00:01]} b5 {[%emt 0:00:04]} 39. Rb4 {[%emt 0:00:05]} Ra2 {[%emt 0:00:01]} 40. Rb3 {[%emt 0:00:04]} Kf7 {[%emt 0:00:01]} 41. g3 {[%emt 0:00:03]} Kf6 {[%emt 0:00:05]} 42. Kg2 {[%emt 0:00:01]} g5 $1 {[%emt 0:00:05]} 43. h3 {[%emt 0:00:04][%cal Bh2h3,Bh3h4][%mdl 32]} h5 {[%emt 0:00:03]} 44. Kf3 {[%emt 0:00:02]} Kg6 {[%emt 0:00:01]} 45. h4 {[%emt 0:00:03]} g4+ {[%emt 0:00:02]} ({Better is} 45... gxh4 $14 46. gxh4 Kg7) 46. Ke3 $18 {[%emt 0:00:02]} Kh6 {[%emt 0:00:02]} 47. Rc3 {[%emt 0:00:02]} ({Don't take} 47. Rxb5 $6 Rxa3+ 48. Ke2 Ra2+ 49. Ke3 Ra3+ 50. Ke2 Ra2+ 51. Ke3 Ra3+ $16) (47. f3 $18) 47... Kg6 {[%emt 0:00:04]} 48. Rb3 {[%emt 0:00:01]} (48. Rd3 $14) 48... Kh6 $1 {[%emt 0:00:01] [#]} 49. Rd3 {[%emt 0:00:03]} ({Don't play} 49. Rxb5 $6 Rxa3+ 50. Ke2 Ra2+ 51. Kf1 Kg6 $16) ({White should try} 49. f4 $1 $18) 49... Kg6 $14 {[%emt 0:00:01]} 50. Rd6+ {[%emt 0:00:03]} Kg7 {[%emt 0:00:10]} 51. Kf4 {[%emt 0:00:01] aiming for Kg5.} Rxf2+ {[%emt 0:00:08] The position is equal.} 52. Kg5 {[%emt 0:00:01]} Rf3 {[%emt 0:00:01][%csl LRa3,LRg3]} 53. Rb6 {[%emt 0:00:03]} Rxa3 {[%emt 0:00:05]} 54. Rxb5 Kf7 {[%emt 0:00:06]} 55. Rb7+ {[%emt 0:00:04]} Kf8 {[%emt 0:00:05]} 56. Kxh5 {[%emt 0:00:04]} Rxg3 {[%emt 0:00:01]} 57. Rb4 {[%emt 0:00:01]} Kg8 {[%emt 0:00:06]} 58. Rxg4+ {[%emt 0:00:02]} Rxg4 59. Kxg4 {[%emt 0:00:01]} Kh7 {[%emt 0:00:01]} 60. Kh5 {[%emt 0:00:01]} Kh8 {[%emt 0:00:00] Weighted Error Value: White=0.23 (precise) /Black=0.20 (precise)} 1/2-1/2

[Event "Susha Chess Blitz Women 2022"]
[Site "Shusha"]
[Date "2022.09.24"]
[Round "3"]
[White "Ozturk Orenli, Kubra"]
[Black "Dzagnidze, Nana"]
[Result "1-0"]
[ECO "E53"]
[WhiteElo "2319"]
[BlackElo "2526"]
[Annotator "TA"]
[PlyCount "27"]
[EventDate "2022.09.24"]
[EventType "tourn"]
[EventCountry "AZE"]
[SourceTitle "playchess.com"]
[Source "ChessBase"]
[SourceQuality "1"]
[TimeControl "180+2"]

{[%evp 11,27,7,2,-13,-25,-19,9,0,31,12,2,-12,-16,-12,127,133,883,853]} 1. d4 {[%emt 0:00:00]} Nf6 {[%emt 0:00:02]} 2. c4 {[%emt 0:00:01]} e6 {[%emt 0:00:01]} 3. Nf3 {[%emt 0:00:01]} d5 {[%emt 0:00:02]} 4. Nc3 {[%emt 0:00:02]} Bb4 {[%emt 0:00:03]} 5. e3 {[%emt 0:00:07]} O-O {[%emt 0:00:03]} 6. Bd3 {[%emt 0:00:05]} c5 {[%emt 0:00:01]} 7. dxc5 {[%emt 0:00:09] E53: Nimzo-Indian: Rubinstein: Main Line (4...0-0 5 Nf3 d5 6 Bd3 c5 7 0-0).} dxc4 {[%emt 0:00:24]} 8. Bxc4 {[%emt 0:00:05]} Qe7 {[%emt 0:00:36]} 9. O-O {[%emt 0:00:08] [#] The position is equal.} Rd8 $146 {[%emt 0:00:08]} ({Predecessor:} 9... Qxc5 10. Qe2 Bxc3 11. bxc3 Bd7 12. Rb1 Rc8 13. Bd3 e5 14. e4 Qc7 15. Be3 Be6 {½-½ (32) Mantovani,R (2370)-Dizdar,G (2505) Lugano 1989}) 10. Qb3 {[%emt 0:00:18]} Nc6 {[%emt 0:00:15]} 11. a3 {[%emt 0:00:05]} Bxc5 {[%emt 0:00:02]} 12. Qc2 {[%emt 0:00:03]} e5 {[%emt 0:00:10]} (12... Bd6 $11) 13. Ng5 $16 {[%emt 0:00:19] [#] Threatens to win with b4.} Rf8 $2 {[%emt 0:00:19][%mdl 8192]} (13... Be6 $16 14. Nxe6 fxe6) 14. Nd5 {[%emt 0:00:05] Black got outplayed after the opening.  Weighted Error Value: White=0.08 (flawless) /Black=0.41} 1-0

[Event "Susha Chess Blitz Women 2022"]
[Site "Shusha"]
[Date "2022.09.24"]
[Round "4"]
[White "Dzagnidze, Nana"]
[Black "Ozturk Orenli, Kubra"]
[Result "1-0"]
[ECO "A28"]
[WhiteElo "2526"]
[BlackElo "2319"]
[Annotator "TA"]
[PlyCount "61"]
[EventDate "2022.09.24"]
[EventType "tourn"]
[EventCountry "AZE"]
[SourceTitle "playchess.com"]
[Source "ChessBase"]
[SourceQuality "1"]
[TimeControl "180+2"]

{[%evp 11,61,4,17,0,37,-1,16,18,28,2,5,19,17,15,36,46,41,24,33,34,29,26,29,8,8,10,193,83,81,88,123,109,223,212,302,300,485,295,469,304,724,706,699,683,660,535,613,593,667,661,859,859]} 1. c4 {[%emt 0:00:01]} e5 {[%emt 0:00:00]} 2. Nc3 {[%emt 0:00:02]} Nf6 {[%emt 0:00:01]} 3. Nf3 {[%emt 0:00:01]} Nc6 {[%emt 0:00:01]} 4. e3 {[%emt 0:00:07]} Bb4 {[%emt 0:00:10]} 5. Qc2 {[%emt 0:00:03]} O-O {[%emt 0:00:10]} 6. Nd5 {[%emt 0:00:01]} Be7 {[%emt 0:00:09]} 7. a3 {[%emt 0:00:17] A28: English Opening: Four Knights Variation.} a5 {[%emt 0:00:23]} 8. b3 {[%emt 0:00:35]} d6 {[%emt 0:00:08]} 9. Bb2 {[%emt 0:00:03] The position is equal.} h6 {[%emt 0:00:29]} 10. d4 {[%emt 0:00:17] [#]} exd4 $146 {[%emt 0:00:23]} ({Predecessor:} 10... Bg4 11. Nxe7+ Qxe7 12. d5 Nb8 13. Be2 Nbd7 14. h3 Bh5 15. Nh4 Bxe2 16. Nf5 Qd8 17. Kxe2 {1-0 (47) Carlsson,L (2355)-Delgerdalai,B (2115) Prague 2022}) 11. Nxd4 {[%emt 0:00:04]} Nxd4 {[%emt 0:00:17]} 12. Bxd4 {[%emt 0:00:02]} Be6 {[%emt 0:00:24]} 13. Nxe7+ {[%emt 0:00:22]} Qxe7 {[%emt 0:00:01]} 14. Be2 {[%emt 0:00:06]} Nd7 {[%emt 0:00:24]} 15. O-O {[%emt 0:00:06]} b6 {[%emt 0:00:13]} 16. f4 {[%emt 0:00:45] [#] And now f5 would win.} f5 {[%emt 0:00:07]} 17. b4 {[%emt 0:00:14]} axb4 {[%emt 0:00:08]} 18. axb4 {[%emt 0:00:01]} d5 $2 {[%emt 0:00:04]} (18... c5 $11 {and Black has nothing to worry.} 19. bxc5 bxc5) 19. c5 {[%emt 0:00:07]} (19. Rxa8 $18 {has better winning chances.} Rxa8 20. cxd5 Bxd5 21. Qxc7 (21. Qxf5 c6 $16)) 19... bxc5 $16 {[%emt 0:00:03]} 20. bxc5 {[%emt 0:00:02]} c6 {[%emt 0:00:03]} 21. Bd3 {[%emt 0:00:06] White is more active.} Rxa1 (21... Rfb8 $16) 22. Rxa1 $18 {[%emt 0:00:01]} Kh8 {[%emt 0:00:05]} (22... Nf6 $142 23. Ra6 (23. Bxf5 Bxf5 24. Qxf5 Ne4 $18) 23... Qd7) 23. Ra7 {[%emt 0:00:03] [#] Strongly threatening Qa4.} Kg8 $2 {[%emt 0:00:02]} (23... Qe8 24. Qb1 Nf6 25. Bxf5 Bxf5 26. Qxf5 Rf7) 24. h3 {[%emt 0:00:03] Black must now prevent Qa4.} Qd8 {[%emt 0:00:02]} (24... Qe8 {keeps fighting.} 25. Kh2 Kh8) 25. Qb2 {[%emt 0:00:04]} Qe7 $2 {[%emt 0:00:01]} (25... Nf6 26. Qb7 Rf7 27. Qxc6 Rxa7) 26. Qb7 {[%emt 0:00:05] White is clearly winning.} Qe8 {[%emt 0:00:03]} 27. Qxc6 {[%emt 0:00:02] Bb5 is the strong threat.} Nf6 {[%emt 0:00:02]} 28. Qxe8 {[%emt 0:00:04]} Nxe8 {[%emt 0:00:01]} 29. c6 {[%emt 0:00:05]} Rf7 {[%emt 0:00:01]} 30. Ra8 {[%emt 0:00:01]} Rf8 {[%emt 0:00:02]} 31. Bc5 {[%emt 0:00:03] Inhibits Nd6.  Weighted Error Value: White=0.41/Black=0.49} 1-0